[Event "Germany Countries-chT Youth 2022"]
[Site "Wiesbaden"]
[Date "2022.10.02"]
[Round "4"]
[White "Lange, Jannis"]
[Black "Hommer, Jeremy"]
[Result "1/2-1/2"]
[ECO "C11"]
[WhiteElo "2085"]
[BlackElo "2184"]
[Annotator "TA"]
[PlyCount "70"]
[EventDate "2022.09.28"]
[EventType "team-tourn"]
[EventRounds "7"]
[EventCountry "GER"]
[SourceTitle "playchess.com"]
[Source "ChessBase"]
[SourceQuality "1"]
[TimeControl "40/5400+30:1800+30"]

{[%evp 15,70,10,22,0,0,0,0,-20,34,12,44,62,54,6,20,23,58,0,14,0,64,73,74,71,63,43,48,37,65,68,57,62,60,39,55,66,60,54,89,51,63,26,21,8,8,8,9,9,62,62,84,0,17,0,72,0,14]} 1. e4 {[%emt 0:00:02]} e6 {[%emt 0:00:06]} 2. d4 {[%emt 0:00:04]} d5 {[%emt 0:00:04]} 3. Nc3 {[%emt 0:00:04]} Nf6 {[%emt 0:00:06]} 4. e5 {[%emt 0:00:04]} Nfd7 {[%emt 0:00:04]} 5. f4 {[%emt 0:00:06]} c5 {[%emt 0:00:04]} 6. Nf3 {[%emt 0:00:04]} Nc6 {[%emt 0:00:05]} 7. Be3 {[%emt 0:00:06]} a6 {[%emt 0:00:04]} 8. Qd2 {[%emt 0:01:08]} b5 {[%emt 0:00:07]} 9. Nd1 {[%emt 0:03:48] C11: French: Classical System: 4 e5 and 4 Bg5 dxe4.} b4 $1 {[%emt 0:00:11][%mdl 4] is more profitable than 9...Be7 at the moment.} 10. c4 {[%emt 0:01:21]} bxc3 {[%emt 0:09:09]} 11. bxc3 {[%emt 0:00:34] [#]} a5 $146 {[%emt 0:08:29]} ({Black should play} 11... cxd4 $11 12. Nxd4 Nxd4 13. Bxd4 Rb8) ({Predecessor:} 11... Bb7 12. Be2 Be7 13. O-O O-O 14. Nf2 cxd4 15. Nxd4 Nc5 16. Nxc6 Bxc6 17. Bd4 Qa5 {½-½ (43) Ambartsumova,K (2272)-Unuk,L (2276) Rijeka 2016}) 12. Bb5 $14 {[%emt 0:08:17]} Qb6 {[%emt 0:01:03]} 13. Rb1 {[%emt 0:13:16]} Ba6 {[%emt 0:02:09]} 14. Bd3 {[%emt 0:01:15]} (14. c4 $14) 14... Qc7 {[%emt 0:01:41]} 15. O-O {[%emt 0:01:07]} Be7 {[%emt 0:01:00]} 16. Nf2 {[%emt 0:02:39]} ({Better is} 16. Bxa6 $14 Rxa6 17. f5) 16... Bxd3 {[%emt 0:04:01]} 17. Qxd3 {[%emt 0:00:40]} c4 {[%emt 0:03:51]} (17... cxd4 $11 18. Nxd4 O-O) 18. Qc2 {[%emt 0:02:33]} g6 {[%emt 0:00:26] Inhibits f5.} 19. Ng5 {[%emt 0:14:24]} Nf8 {[%emt 0:02:36]} 20. a4 {[%emt 0:02:31] White is much more active.} h6 {[%emt 0:02:52]} 21. Nf3 {[%emt 0:00:21]} h5 {[%emt 0:03:09]} 22. Rb5 {[%emt 0:03:21]} Nd7 {[%emt 0:00:58]} 23. Nh3 {[%emt 0:03:40]} Rb8 {[%emt 0:06:50]} 24. Rfb1 {[%emt 0:00:33]} Rxb5 {[%emt 0:00:47]} 25. Rxb5 {[%emt 0:00:13]} Na7 {[%emt 0:04:41]} 26. Rb2 {[%emt 0:02:22]} Nb6 {[%emt 0:01:18]} 27. Nhg5 {[%emt 0:01:40]} Qc6 {[%emt 0:05:24]} 28. Nh4 {[%emt 0:07:02][%cal Og5f7] Black must now prevent Nxf7!} Rg8 {[%emt 0:05:23]} 29. Ra2 {[%emt 0:00:12]} Nac8 {[%emt 0:02:19]} 30. Bc1 {[%emt 0:00:27]} Kf8 {[%emt 0:05:20]} 31. h3 {[%emt 0:13:37]} Kg7 {[%emt 0:00:14]} (31... Bd8 $11) 32. Nhf3 {[%emt 0:02:20]} Rh8 {[%emt 0:01:43] [#]} 33. Nh4 {[%emt 0:05:45]} (33. g4 $1 $16) 33... Rg8 $11 {[%emt 0:03:31]} 34. Nhf3 {[%emt 0:02:24]} ({White should try} 34. Qf2 $11) 34... Rh8 $1 $16 {[%emt 0:00:30] [#]} 35. Nh4 {[%emt 0:00:38]} (35. g4 $1 $16) 35... Rg8 {[%emt 0:00:54] Weighted Error Value: White=0.21 (precise) /Black=0.16 (very precise)} 1/2-1/2

[Event "Germany Countries-chT Youth 2022"]
[Site "Wiesbaden"]
[Date "2022.10.02"]
[Round "4"]
[White "Leonard, Timo"]
[Black "Kolb, Tobias"]
[Result "1/2-1/2"]
[ECO "D30"]
[WhiteElo "2067"]
[BlackElo "2357"]
[Annotator "TA"]
[PlyCount "98"]
[EventDate "2022.09.28"]
[EventType "team-tourn"]
[EventRounds "7"]
[EventCountry "GER"]
[SourceTitle "playchess.com"]
[Source "ChessBase"]
[SourceQuality "1"]
[TimeControl "40/5400+30:1800+30"]

{[%evp 22,98,35,25,29,37,57,35,49,54,55,62,60,43,65,65,57,38,77,93,110,18,32,0,0,0,33,-65,-62,-66,-59,-53,-49,-45,-57,-242,-237,-203,-196,-199,-96,-102,-95,-106,-103,-123,-63,-54,-52,-68,-62,-62,-62,-62,-48,-46,-64,-57,0,-31,0,0,0,0,0,0,0,0,0,0,0,0,0,0,0,0,0,0,0]} 1. d4 {[%emt 0:00:03]} d5 {[%emt 0:00:03]} 2. c4 {[%emt 0:00:03]} e6 {[%emt 0:00:03]} 3. Nf3 {[%emt 0:00:03]} a6 {[%emt 0:00:03]} 4. Bg5 {[%emt 0:01:17]} Nf6 {[%emt 0:00:04]} 5. cxd5 {[%emt 0:03:37]} exd5 {[%emt 0:00:05]} 6. Nc3 {[%emt 0:00:06]} Be7 {[%emt 0:01:12]} 7. e3 {[%emt 0:04:50]} h6 {[%emt 0:01:53]} 8. Bh4 {[%emt 0:02:04]} O-O {[%emt 0:00:14]} 9. Bd3 {[%emt 0:00:18]} Nbd7 {[%emt 0:01:37]} 10. O-O {[%emt 0:02:24]} c6 {[%emt 0:00:20]} 11. Qc2 {[%emt 0:00:55]} Re8 {[%emt 0:00:04]} 12. Bg3 {[%emt 0:03:15]} Nf8 {[%emt 0:12:57] D36: Queen's Gambit Declined: Exchange Variation: Main line (5 Bg5 c6 6 Qc2).} 13. h3 {[%emt 0:02:34]} Ne6 {[%emt 0:08:04]} 14. Rab1 {[%emt 0:04:25] [#]} (14. Na4 {seems wilder.} Ng5 15. Ne5 Bd6 16. f3) 14... g6 $146 {[%emt 0:17:32] White is slightly better.} ({Predecessor:} 14... c5 15. dxc5 Nxc5 16. Bf5 {½-½ (16) Umansky,V (2315)-Benza,A (2272) Lipetsk 2009}) 15. b4 {[%emt 0:10:55]} Ng7 {[%emt 0:00:36]} 16. Bf4 {[%emt 0:06:53]} h5 {[%emt 0:01:13]} 17. a4 {[%emt 0:02:54][%cal Ba2a4,Ba4b5][%mdl 32]} Bf5 {[%emt 0:00:37]} 18. Bxf5 {[%emt 0:03:06]} Nxf5 {[%emt 0:00:38]} 19. b5 {[%emt 0:03:28]} cxb5 {[%emt 0:05:53]} 20. axb5 {[%emt 0:00:19]} a5 {[%emt 0:00:08]} 21. Qb3 {[%emt 0:02:10] White is more active.} (21. Be5 $16) 21... Bb4 $1 $11 {[%emt 0:09:28]} 22. Na2 {[%emt 0:07:26]} Be7 {[%emt 0:01:11]} ({Resist} 22... Bd6 23. Bg5 $14) 23. Nc3 {[%emt 0:02:20]} Bb4 $1 {[%emt 0:00:03]} 24. Bg5 {[%emt 0:12:38]} ({White should try} 24. Rfc1 $14) 24... Bxc3 $15 {[%emt 0:00:51]} 25. Bxf6 {[%emt 0:01:09]} Qxf6 26. Qxc3 {[%emt 0:00:04]} Nd6 {[%emt 0:01:09][%cal Bf5d6,Bd6e4,Be4c3][%mdl 32]} 27. Qc5 {[%emt 0:02:49]} Ne4 $1 {[%emt 0:00:15]} 28. Qxd5 {[%emt 0:04:06]} (28. Qc7 $15) 28... Nc3 $1 $19 {[%emt 0:00:05][%csl LRb1,LRd5]} 29. Qxb7 {[%emt 0:00:03] Hoping for Rb3.} Nxb1 {[%emt 0:00:10]} 30. Rxb1 {[%emt 0:00:03] [#]} Reb8 {[%emt 0:12:15]} (30... Qf5 $1 $19 {[%cal Rf5b1] has better winning chances.} 31. Ra1 Reb8) 31. Qd5 $17 {[%emt 0:04:04]} Qf5 {[%emt 0:00:45]} 32. Qxf5 {[%emt 0:00:04]} gxf5 {[%emt 0:00:02][%mdl 4096] Endgame KRR-KRN} 33. Ne5 {[%emt 0:02:30] [#]} ({But not} 33. b6 $2 a4 34. Ne5 (34. b7 $2 Ra7 $19) 34... Rb7 $19) 33... a4 {[%emt 0:00:25]} ({Better is} 33... Rb7 $1 $17 {...a4 is the strong threat.} 34. Nd3 Rab8) 34. Nd7 $1 $15 {[%emt 0:00:46]} Rb7 {[%emt 0:00:30][%mdl 1024] Black has compensation.} 35. Nc5 {[%emt 0:00:12]} Rb6 {[%emt 0:00:03] Strongly threatening ...a3.} 36. Ra1 {[%emt 0:05:00]} a3 {[%emt 0:03:50]} 37. Na6 {[%emt 0:00:30]} Ra7 {[%emt 0:01:32]} ({Don't play} 37... Rxb5 38. Nc7 Rbb8 39. Nxa8 Rxa8 40. Ra2 $16) 38. Rxa3 {[%emt 0:00:15]} Rxb5 {[%emt 0:00:02] White must now prevent ...Rb1+.} 39. Ra4 {[%emt 0:00:25]} Rb1+ {[%emt 0:01:08]} (39... f4 $5 {[%cal Rb5b1]} 40. Rb4 Rxb4 41. Nxb4 Ra1+ 42. Kh2 fxe3 43. fxe3 h4 $11) 40. Kh2 {[%emt 0:00:06]} h4 {[%emt 0:02:36]} (40... f4 $5 41. exf4 h4 $17) 41. g3 {[%emt 0:39:01] The position is equal.} Rb2 {[%emt 0:32:58]} 42. Kg2 {[%emt 0:01:00]} hxg3 {[%emt 0:00:54]} 43. Kxg3 {[%emt 0:00:04]} f4+ {[%emt 0:01:32][%mdl 64] Decoy} 44. Kxf4 {[%emt 0:00:54]} Rxf2+ {[%emt 0:00:03]} 45. Kg3 {[%emt 0:00:37]} Re2 {[%emt 0:00:48]} 46. Kf3 {[%emt 0:00:12]} Rh2 {[%emt 0:00:06]} 47. Kg3 {[%emt 0:00:09]} Re2 {[%emt 0:02:17]} 48. Kf3 {[%emt 0:00:28]} Rh2 {[%emt 0:00:58]} 49. Kg3 {[%emt 0:01:22]} Re2 {[%emt 0:01:08] Whites escaped into a draw.  Weighted Error Value: White=0.17 (very precise) /Black=0.12 (very precise)} 1/2-1/2

[Event "Germany Countries-chT Youth 2022"]
[Site "Wiesbaden"]
[Date "2022.10.02"]
[Round "4"]
[White "Chassard, Cedric"]
[Black "Geltz, Noah"]
[Result "0-1"]
[ECO "B52"]
[WhiteElo "2042"]
[BlackElo "2142"]
[Annotator "TA"]
[PlyCount "72"]
[EventDate "2022.09.28"]
[EventType "team-tourn"]
[EventRounds "7"]
[EventCountry "GER"]
[SourceTitle "playchess.com"]
[Source "ChessBase"]
[SourceQuality "1"]
[TimeControl "40/5400+30:1800+30"]

{[%evp 15,72,15,30,0,0,-2,-14,-3,0,-18,-17,-19,-20,-18,12,12,18,24,21,21,20,19,31,28,30,17,28,0,0,14,12,0,0,0,0,0,0,0,0,0,0,-279,-278,-309,-312,-349,-352,-366,-334,-366,-366,-366,-366,-366,-346,-424,-393,-378,-370]} 1. e4 {[%emt 0:00:04]} c5 {[%emt 0:00:13]} 2. Nf3 {[%emt 0:00:05]} d6 {[%emt 0:00:13]} 3. Bb5+ {[%emt 0:00:08]} Bd7 {[%emt 0:00:34]} 4. Bxd7+ {[%emt 0:00:07]} Nxd7 {[%emt 0:00:33]} 5. O-O {[%emt 0:00:28]} Ngf6 {[%emt 0:00:17]} 6. Qe2 {[%emt 0:01:48]} e6 {[%emt 0:00:43]} 7. c3 {[%emt 0:00:15] is now more promising than 7.b3.} Be7 {[%emt 0:00:52]} 8. d4 {[%emt 0:00:38]} O-O {[%emt 0:03:02]} 9. Nbd2 {[%emt 0:11:09] B52: Sicilian: Moscow Variation with 3...Bd7.} cxd4 {[%emt 0:05:14]} 10. cxd4 {[%emt 0:00:33]} Rc8 {[%emt 0:02:50]} 11. Rd1 {[%emt 0:10:32] [#] The position is equal.} Qa5 $146 {[%emt 0:21:05]} ({Predecessor:} 11... a6 12. Nf1 d5 13. e5 Ne4 14. Ne1 h6 15. f3 Ng5 16. Ng3 Qb6 17. f4 Nh7 {½-½ (32) Szakolczai,P (2275)-Gruenenwald,J (2331) Switzerland 2011}) 12. Nb3 Qb4 13. Bg5 {[%emt 0:04:16]} h6 {[%emt 0:06:35]} 14. Bh4 d5 {[%emt 0:09:39]} 15. e5 {[%emt 0:06:12]} Ne4 {[%emt 0:00:04][%cal Bf6e4,Be4g5,Bg5f7,Bf7d6,Bd6f5][%mdl 32]} 16. Bxe7 {[%emt 0:09:14]} Qxe7 {[%emt 0:05:41]} 17. Rac1 {[%emt 0:08:01]} Nb6 {[%emt 0:02:44]} 18. Ne1 {[%emt 0:01:02]} Nc4 {[%emt 0:00:14]} 19. f3 {[%emt 0:04:16]} Ng5 {[%emt 0:03:57]} 20. Rc2 {[%emt 0:00:30]} f6 21. Nd2 {[%emt 0:05:18]} Nxd2 {[%emt 0:05:05]} 22. Rdxd2 {[%emt 0:01:04]} fxe5 {[%emt 0:04:09]} 23. Qxe5 {[%emt 0:02:13]} Nf7 {[%emt 0:02:18]} 24. Qe3 {[%emt 0:05:23]} Nd6 {[%emt 0:03:09] [#] Threatens to win with ...Nc4.} 25. b3 {Against Nc4} Nf5 26. Qe5 {[%emt 0:04:29]} Qd6 {[%emt 0:07:44]} 27. Qxd6 {[%emt 0:00:25]} Nxd6 {[%emt 0:00:00]} 28. Kf2 $2 {[%emt 0:05:07][%mdl 8192] [#]} (28. Rxc8 $11 {and White has nothing to worry.} Rxc8 29. Kf2) 28... Ne4+ $1 $19 {[%emt 0:00:06]} 29. Ke3 {[%emt 0:00:55]} Nxd2 {[%emt 0:00:11]} 30. Kxd2 {[%emt 0:00:39]} Rxc2+ {[%emt 0:02:57]} 31. Kxc2 {[%emt 0:00:20][%mdl 4096] Endgame KR-KN} b6 {[%emt 0:00:49]} 32. Nd3 {[%emt 0:00:24]} g5 {[%emt 0:00:53]} 33. Ne5 {[%emt 0:00:32]} Kg7 {[%emt 0:01:33]} 34. Kd2 {[%emt 0:02:56]} Rc8 {[%emt 0:00:41]} 35. Nd3 {[%emt 0:00:18]} Kf6 {[%emt 0:00:43]} 36. Ne5 {[%emt 0:06:33]} h5 {[%emt 0:00:58] Weighted Error Value: White=0.28 (precise) /Black=0.05 (flawless)} 0-1

[Event "Germany Countries-chT Youth 2022"]
[Site "Wiesbaden"]
[Date "2022.10.02"]
[Round "4"]
[White "Pikalow, Michael"]
[Black "Muller, Magnus"]
[Result "0-1"]
[ECO "B23"]
[WhiteElo "2037"]
[BlackElo "1464"]
[Annotator "TA"]
[PlyCount "126"]
[EventDate "2022.09.28"]
[EventType "team-tourn"]
[EventRounds "7"]
[EventCountry "GER"]
[SourceTitle "playchess.com"]
[Source "ChessBase"]
[SourceQuality "1"]
[TimeControl "40/5400+30:1800+30"]

{[%evp 9,126,0,0,-8,-9,-10,0,0,15,32,18,0,0,21,49,8,39,30,136,12,0,12,18,0,7,0,0,0,19,14,12,20,0,0,6,0,0,0,0,-32,-42,-124,-127,-123,-125,-117,-125,-127,-126,-199,-208,-192,-211,-186,-133,-150,-95,-95,-96,-167,-131,-117,-89,-135,-54,-57,-55,-51,-57,-57,-58,-51,-58,-73,-54,-53,-46,-62,-50,-72,-77,-82,-95,-169,0,0,0,0,0,0,0,0,0,0,0,-28,-28,-227,-220,-220,0,0,0,0,0,0,0,0,0,-29983,-8,-29983,-29984,-29984,-29985,-29987,-29988,-29989,-29987]} 1. e4 {[%emt 0:00:07]} c5 {[%emt 0:00:13]} 2. Nc3 {[%emt 0:00:02]} d6 {[%emt 0:00:06]} 3. d4 {[%emt 0:03:08]} cxd4 {[%emt 0:00:38]} 4. Qxd4 {[%emt 0:00:03]} Nc6 {[%emt 0:00:09]} 5. Qd2 {[%emt 0:00:15]} e6 {[%emt 0:00:07]} 6. b3 {[%emt 0:00:10] B23: Closed Sicilian: Lines without g3.} Nf6 {[%emt 0:00:04]} 7. Bb2 {[%emt 0:00:15]} d5 {[%emt 0:00:04] is cutting edge theory.} 8. exd5 {[%emt 0:08:02] The position is equal.} exd5 {[%emt 0:00:18]} 9. O-O-O {[%emt 0:03:27][%cal Rc3d5]} Be6 {[%emt 0:00:06]} 10. Nge2 {[%emt 0:12:14]} Qa5 $1 {[%emt 0:10:28] [#]} 11. f3 $146 {[%emt 0:14:56]} ({Predecessor:} 11. Kb1 Bb4 12. a3 Ne4 13. Qe1 Bxa3 14. Nxe4 Qxe1 15. Rxe1 Bxb2 16. Kxb2 dxe4 17. Nf4 {0-1 (32) Pridorozhni,A (2564)-Sarana,A (2656) Khanty-Mansiysk 2021}) 11... Ba3 {[%emt 0:16:15]} 12. Nd4 {[%emt 0:06:22]} (12. Kb1 $5 {[%cal Rc3d5]}) 12... Rc8 {[%emt 0:11:37]} (12... O-O $5 {[%cal Ra3b4]}) 13. Kb1 {[%emt 0:13:03] Strongly threatening Nxc6.} (13. Ncb5 $5 {[%cal Rb2a3]} Qxd2+ 14. Rxd2 $14) 13... Bb4 {[%emt 0:11:13]} (13... Bxb2 $11 {remains equal.} 14. Kxb2 O-O) 14. Nxe6 {[%emt 0:07:05]} (14. a3 $1 $16 Bxa3 15. Nxc6 Rxc6 16. Bb5) 14... fxe6 $11 {[%emt 0:02:11]} 15. Qe3 {[%emt 0:00:25]} Kf7 {[%emt 0:07:05] Threatens to win with ...d4.} 16. Nb5 {[%emt 0:04:37] Inhibits d4. Hoping for a3.} (16. Re1 Rhe8 17. a3 Bxa3 18. Bxa3 Qxa3 $17) 16... a6 {[%emt 0:08:05]} 17. Nd4 {[%emt 0:01:00]} Nxd4 {[%emt 0:02:45]} 18. Qxd4 {[%emt 0:04:05]} Bc3 {[%emt 0:01:48]} 19. Bxc3 {[%emt 0:00:49]} Qxc3 {[%emt 0:01:41]} 20. Qxc3 {[%emt 0:01:41]} Rxc3 {[%emt 0:00:10]} 21. Rd3 {[%emt 0:01:32]} Rc7 {[%emt 0:01:55]} 22. Be2 {[%emt 0:07:17]} Rhc8 {[%emt 0:04:39]} 23. Rc1 {[%emt 0:00:15]} b5 {[%emt 0:05:50]} 24. g4 {[%emt 0:06:56]} Ke7 {[%emt 0:03:38]} 25. c4 {[%emt 0:03:15]} (25. h4 $15) 25... dxc4 $17 {[%emt 0:02:05]} 26. bxc4 {[%emt 0:00:09]} Rxc4 {[%emt 0:01:28]} (26... bxc4 $6 27. Rdc3 $11) 27. Rxc4 {[%emt 0:00:50]} Rxc4 {[%emt 0:01:03][%mdl 4096] Endgame KRB-KRN} (27... bxc4 $6 28. Rc3 $11) 28. Ra3 {[%emt 0:00:07][%csl LRa6,LRc4]} Rc6 {[%emt 0:00:11]} 29. Ra5 {[%emt 0:00:09]} (29. f4 $17) 29... Nd5 $19 {[%emt 0:00:35] And now ...Nc3+ would win.} 30. Bd3 {[%emt 0:01:46]} h6 {[%emt 0:02:00]} 31. Kb2 {[%emt 0:00:51]} Kd6 {[%emt 0:04:18]} (31... Ne3 $19 32. Ra3 Nd1+ 33. Kb1 Nc3+ 34. Kb2 Nd1+ 35. Kb1 g5) 32. a4 $17 {[%emt 0:00:41]} Nc7 {[%emt 0:00:06]} (32... Ke5 $142 33. axb5 axb5 34. Rxb5 Kf4) 33. axb5 {[%emt 0:00:14]} axb5 {[%emt 0:00:03]} 34. Kb3 {[%emt 0:00:45]} (34. Ra7 $17) 34... Rc5 {[%emt 0:02:42][%cal Ob5b4]} ({Not} 34... Nd5 35. Be4 $17) 35. Be4 {[%emt 0:00:34]} Rc1 {[%emt 0:01:00]} 36. Ra2 {[%emt 0:00:33]} (36. h4 $142) 36... Kc5 {[%emt 0:00:37]} (36... Rh1 $17 37. g5 Rc1) 37. Ra7 $15 {[%emt 0:00:40]} Kd4 {[%emt 0:00:39]} 38. Bc2 {[%emt 0:00:34]} Nd5 {[%emt 0:00:49]} 39. Rxg7 {[%emt 0:00:20]} Re1 $1 {[%emt 0:00:40]} 40. Be4 {[%emt 0:00:40]} Re3+ {[%emt 0:00:05]} 41. Kb2 {[%emt 0:01:25]} Re2+ {[%emt 0:00:13]} 42. Kb3 {[%emt 0:00:35]} Rxh2 {[%emt 0:01:40]} 43. Rb7 {[%emt 0:14:57]} Kc5 {[%emt 0:03:03]} 44. Rb8 {[%emt 0:00:18]} Nb6 {[%emt 0:03:30] Black is more active.} 45. Bd3 {[%emt 0:06:56]} Rf2 {[%emt 0:02:14]} 46. Rf8 {[%emt 0:00:56]} (46. Be4 $17) 46... Nc4 $2 {[%emt 0:02:32]} (46... Nd7 $1 $19 {[%cal Rd7f8]} 47. Rc8+ Kd6) 47. Bxc4 $11 {[%emt 0:05:02]} bxc4+ {[%emt 0:00:54] KR-KR} 48. Kc3 {[%emt 0:00:01]} Kd5 {[%emt 0:01:00]} 49. Rf4 {[%emt 0:03:19]} Rf1 {[%emt 0:03:20]} 50. Rd4+ {[%emt 0:00:51]} Ke5 {[%emt 0:00:12]} 51. Re4+ {[%emt 0:00:21]} Kf6 {[%emt 0:00:32]} 52. f4 {[%emt 0:00:53]} Rg1 {[%emt 0:03:02]} 53. g5+ {[%emt 0:00:30]} (53. Kxc4 $11 {and White has nothing to worry.} Rxg4 54. Kd3) 53... Kf5 $19 {[%emt 0:01:21]} ({Worse is} 53... hxg5 54. fxg5+ Kf5 55. Re2 $15) 54. Rxc4 {[%emt 0:00:44]} Rc1+ $2 {[%emt 0:00:10]} ({Don't go for} 54... hxg5 $2 55. Rc5+ Kxf4 56. Kd2 $19) (54... Rg3+ $19 55. Kd2 h5) 55. Kd3 $11 {[%emt 0:00:04]} Rxc4 {[%emt 0:00:05]} 56. Kxc4 {[%emt 0:00:01]} hxg5 {[%emt 0:00:07]} 57. fxg5 {[%emt 0:00:09]} Kxg5 {[%emt 0:00:05] ( -> ...e5). KP-K} 58. Kd3 {[%emt 0:00:24]} Kf5 {[%emt 0:00:04]} 59. Kd2 $2 {[%emt 0:01:40][%mdl 8192]} (59. Ke3 $11) 59... Kf4 $2 {[%emt 0:00:05]} (59... Ke4 $1 {mates} 60. Ke2 e5 61. Kd2 Kf3 62. Kd1 Kf2 63. Kc1 e4 64. Kd2 e3+ 65. Kc3 e2 66. Kd4 e1=Q 67. Kd5 Qe7 68. Kd4 Ke2 69. Kc4 Ke3 70. Kd5 Kd3 71. Kc6 Kc4 72. Kb6 Qd7 73. Ka6 Kc5 74. Ka5 Qb5#) 60. Kd3 $2 {[%emt 0:00:35][%mdl 8192] [#]} (60. Ke2 $11 Ke4 61. Kf2 Kd3 62. Ke1 e5 63. Kf2 e4 64. Ke1 Ke3 65. Kd1 Kf2 66. Kd2 e3+ 67. Kd3 e2 68. Ke4 e1=Q+ 69. Kd5 Qe7 70. Kd4 Qd6+ 71. Kc3 Ke2 72. Kc4 Kd2 73. Kb3 Qd5+ 74. Ka3 Qb5 75. Ka2 Kc3 76. Ka3 Qb3#) 60... e5 $1 {[%emt 0:00:19] Black mates.} 61. Ke2 {[%emt 0:00:41]} Ke4 {[%emt 0:00:04][%cal Bf4e4,Be4d3,Bd3e3][%mdl 32]} 62. Kf2 {[%emt 0:00:13] [#]} Kd3 $1 {[%emt 0:00:08]} 63. Ke1 {[%emt 0:00:33]} Ke3 {Weighted Error Value: White=0.43/Black=0.32} 0-1